bitfinex/quotes_SOLUSD_20251006
["timestamp","ask_amount","ask_price","bid_price","bid_amount"]
[1759765849717,14.79227419,236.61,236.57,30.0]
[1759765850022,0.66,236.6,236.54,11.54647521]
[1759765850212,0.66,236.6,236.55,30.0]
[1759765850617,14.79227419,236.61,236.55,30.67]
[1759765851522,14.79227419,236.61,236.56,0.67]
[1759765851705,4.22636405,236.61,236.56,0.67]
[1759765852019,4.22636405,236.61,236.57,2.74247529]
[1759765852224,4.22636405,236.61,236.58,0.67]
[1759765852420,4.22636405,236.61,236.59,30.0]
[1759765852599,4.22636405,236.61,236.6,0.67]
[1759765852799,4.22600684,236.63,236.6,0.67]
[1759765853006,4.22600684,236.63,236.61,0.67]
[1759765853320,14.7885241,236.67,236.62,0.67]
[1759765854223,3.67239552,236.66,236.63,30.0]
[1759765854518,3.01239552,236.64,236.55,0.67]
[1759765854725,3.01239552,236.64,236.56,28.60735557]
[1759765854896,0.66,236.63,236.57,2.74735557]
[1759765855098,3.01239552,236.62,236.58,30.02]
[1759765855302,14.79227419,236.61,236.58,30.02]
[1759765855713,14.79227419,236.61,236.59,3.41958345]
[1759765855714,4.22636405,236.61,236.59,3.41958345]
[1759765855921,4.22636405,236.61,236.59,0.67]
[1759765856111,4.22636405,236.61,236.6,0.67]
[1759765856430,4.88636405,236.61,236.6,2.75142047]
[1759765856600,18.46466971,236.61,236.6,30.02]
[1759765857003,14.79227419,236.61,236.6,30.02]
[1759765857823,15.45227419,236.61,236.6,30.04]
[1759765858210,16.7117994,236.61,236.6,30.04]
[1759765860435,16.7117994,236.61,236.6,32.80121498]
[1759765860732,14.79227419,236.61,236.6,32.80121498]
[1759765860906,4.22636405,236.61,236.6,33.47121498]
[1759765861799,4.22618544,236.62,236.6,33.47121498]
[1759765862001,20.8,236.69,236.61,3.43121498]
[1759765862228,1.91952521,236.67,236.62,2.76121498]
[1759765862403,2.57952521,236.67,236.63,2.76121498]
[1759765862603,20.8,236.69,236.64,32.76121498]
[1759765862805,1.91952521,236.68,236.64,30.0]
[1759765863210,14.78664976,236.7,236.4,24.74784978]
[1759765863211,20.39810084,236.65,236.45,4.60760453]
[1759765863406,22.71952521,236.46,236.28,0.2]
[1759765863723,7.67810084,236.4,236.29,0.67]
[1759765863926,14.80604085,236.39,236.3,4.32]
[1759765864133,1.91952521,236.33,236.3,4.32]
[1759765864517,14.80604085,236.39,236.3,4.32]
[1759765864832,1.91952521,236.31,236.3,4.32]
[1759765865130,4.67979282,236.31,236.28,1e-08]
[1759765865432,4.67979282,236.29,236.28,1e-08]
[1759765865935,8.9118805,236.29,236.28,1e-08]
[1759765872234,4.23208768,236.29,236.28,1e-08]
[1759765872441,8.9118805,236.29,236.28,1e-08]
[1759765876813,19.78835571,236.29,236.28,1e-08]
[1759765879425,8.9118805,236.29,236.28,1e-08]
[1759765879827,10.87647521,236.28,236.16,14.02]
[1759765880026,4.67979282,236.19,236.16,14.02]
[1759765880225,4.23405876,236.18,236.16,14.02]
[1759765880436,4.23405876,236.18,236.17,0.72]
[1759765882045,4.67979282,236.2,236.17,0.72]
[1759765882243,4.67979282,236.18,236.13,0.72]
[1759765882548,4.67979282,236.17,236.14,0.72]
[1759765882849,10.87647521,236.24,236.14,0.72]
[1759765883049,10.87647521,236.24,236.15,0.72]
[1759765884162,14.81606907,236.23,236.15,0.72]
[1759765886237,21.16477611,236.25,236.15,0.72]
[1759765887355,14.81418775,236.26,236.15,0.72]
[1759765887969,14.81418775,236.26,236.15,21.52]
[1759765888142,14.81418775,236.26,236.16,0.72]
[1759765893572,35.97731312,236.26,236.17,31.4]
[1759765893752,14.81418775,236.26,236.18,0.72]
[1759765894874,14.8123069,236.29,236.18,0.72]
[1759765897457,14.8123069,236.29,236.19,31.38]
[1759765897672,14.8123069,236.29,236.2,0.66]
[1759765898461,14.8123069,236.29,236.21,31.34]
[1759765899175,14.8123069,236.29,236.2,0.66]
[1759765899357,35.97274534,236.29,236.21,31.34]
[1759765899753,35.97274534,236.29,236.17,0.66]
[1759765899969,35.97274534,236.29,236.22,31.34]
[1759765901490,10.87647521,236.21,236.08,0.66]
[1759765901665,1.92592607,236.16,236.08,31.98]
[1759765902182,2.80867021,236.2,236.08,31.98]
[1759765902360,1.92592607,236.2,236.09,0.66]
[1759765903051,1.92592607,236.18,236.09,0.66]
[1759765903253,14.81983316,236.17,236.09,0.66]
[1759765903853,1.92592607,236.15,236.09,0.66]
[1759765904363,1.92592607,236.15,236.1,31.32]
[1759765904756,1.92592607,236.15,236.1,31.98]
[1759765905654,14.82171593,236.14,236.11,31.3]
[1759765906567,10.58693995,236.14,236.12,31.3]
[1759765907558,14.82171593,236.14,236.12,31.3]
[1759765908162,14.82171593,236.14,236.13,31.26]
[1759765908463,17.66110877,236.14,236.13,31.26]
[1759765908681,16.747642,236.14,236.13,31.26]
[1759765908885,19.58705257,236.14,236.13,31.26]
[1759765909557,40.76093247,236.14,236.07,0.67]
[1759765909762,1.92592607,236.12,236.08,31.24]
[1759765909984,2.83941057,236.11,236.08,31.24]
[1759765910177,2.84004501,236.11,236.08,31.24]
[1759765910982,2.84004501,236.11,236.09,31.22]
[1759765911288,2.84004501,236.12,236.09,0.67]
[1759765911582,4.23531404,236.11,236.09,0.67]
[1759765911794,4.23531404,236.11,236.1,31.2]
[1759765912460,14.82359916,236.11,236.1,31.2]
[1759765913081,16.74952523,236.11,236.1,31.2]
[1759765914160,16.74952523,236.11,236.1,31.18]
[1759765914360,16.74952523,236.11,236.08,0.67]
[1759765914587,16.74952523,236.11,236.09,31.83]
[1759765914756,14.82359916,236.11,236.09,31.16]
[1759765914960,1.92592607,236.1,236.07,0.67]
[1759765915161,1.92592607,236.1,236.08,31.16]
[1759765915790,1.92592607,236.09,236.08,31.16]
[1759765916373,1.92592607,236.09,236.04,0.2]
[1759765916681,1.92592607,236.06,236.05,31.14]
[1759765916871,4.23639059,236.05,236.04,0.2]
[1759765917200,21.14309194,236.05,236.04,1e-08]
[1759765917487,15.1128658,236.05,236.04,1e-08]
[1759765917788,21.14309194,236.05,236.04,1e-08]
[1759765919201,15.1128658,236.05,236.04,1e-08]
[1759765919367,21.14309194,236.05,236.04,1e-08]
[1759765919568,10.87647521,236.01,235.93,13.88]
[1759765919797,10.87647521,236.01,235.91,0.87]
[1759765919798,3.01511307,235.97,235.91,0.87]
[1759765920088,10.87647521,235.96,235.91,0.87]
[1759765920266,10.87647521,235.99,235.91,31.4]
[1759765920460,10.87647521,235.99,235.91,0.2]
[1759765921197,10.87647521,235.97,235.91,0.2]
[1759765921697,10.87647521,235.97,235.92,0.67]
[1759765922008,10.87647521,235.97,235.93,0.67]
[1759765922173,17.84687846,235.98,235.93,0.67]
[1759765922511,14.83176539,235.98,235.94,0.67]
[1759765922680,4.23764725,235.98,235.95,0.67]
[1759765922887,4.23764725,235.98,235.96,0.67]
[1759765923288,4.23728813,236.0,235.96,0.67]
[1759765923492,14.83050846,236.0,235.97,0.67]
[1759765923704,14.83050846,236.0,235.98,31.85]
[1759765923705,4.23728813,236.0,235.98,31.85]
[1759765924005,4.23728813,236.0,235.99,0.67]
[1759765925121,4.23728813,236.0,235.99,31.16]
[1759765925288,4.23692907,236.02,235.91,0.2]
[1759765925484,14.82925175,236.02,235.97,0.67]
[1759765925689,14.82925175,236.02,235.98,0.67]
[1759765925990,14.82925175,236.02,235.99,31.16]
[1759765926218,14.82925175,236.02,235.99,31.83]
[1759765926391,4.23672049,236.04,236.0,0.67]
[1759765926903,4.23672049,236.04,235.99,31.16]
[1759765927107,14.82814567,236.04,236.0,0.67]
[1759765927415,3.01511307,236.03,236.01,31.14]
[1759765927604,17.84325874,236.04,236.01,31.14]
[1759765927914,14.82814567,236.04,236.01,31.81]
[1759765928118,14.82814567,236.04,236.01,31.14]
[1759765928287,14.82814567,236.04,236.01,31.81]
[1759765929011,17.84325874,236.04,236.01,31.81]
[1759765929318,17.84325874,236.04,236.02,31.79]
[1759765929319,4.23672049,236.04,236.02,31.79]
[1759765929514,4.23672049,236.04,236.03,31.79]
[1759765931396,17.84325874,236.04,235.98,0.67]
[1759765931718,17.84325874,236.04,235.94,29.91]
[1759765931719,3.01511307,235.99,235.94,29.91]
[1759765931908,10.87647521,236.03,235.95,0.67]
[1759765932093,3.01511307,236.03,235.95,0.67]
[1759765932294,17.84325874,236.04,235.95,0.67]
[1759765932496,4.23672049,236.04,235.95,0.67]
[1759765932996,10.59120937,236.05,235.95,0.67]
[1759765934006,4.23621113,236.06,235.95,0.67]
[1759765934906,17.84185203,236.06,235.95,0.67]
[1759765935098,4.23657007,236.04,235.96,31.1]
[1759765935302,10.58831167,236.11,235.99,20.8]
[1759765935514,3.01511307,236.1,235.99,20.8]
[1759765935729,3.01511307,236.1,236.0,0.67]
[1759765936635,3.01511307,236.09,236.0,0.67]
[1759765937095,4.23585225,236.08,236.0,0.67]
[1759765937514,7.25096532,236.08,236.0,0.67]
[1759765937720,3.01511307,236.07,236.0,0.67]
[1759765938101,3.01511307,236.06,235.99,20.8]
[1759765938305,3.01511307,236.03,236.0,31.75]
[1759765938532,14.82548288,236.08,236.01,31.75]
[1759765938824,3.01511307,236.07,236.02,31.08]
[1759765939029,10.58963063,236.08,236.03,0.69]
[1759765939198,10.58963063,236.08,236.02,31.08]
[1759765939402,13.6047437,236.08,236.02,31.08]
[1759765939826,3.01511307,236.07,236.02,31.08]
[1759765940003,3.01511307,236.07,236.03,0.69]
[1759765940202,13.6047437,236.08,236.03,0.69]
[1759765941121,17.84059595,236.08,236.03,0.69]
[1759765941327,3.01511307,236.07,236.02,31.08]
[1759765941632,3.01511307,236.06,236.02,31.77]
[1759765942000,3.01511307,236.07,236.02,31.77]
[1759765942215,17.84059595,236.08,236.02,31.08]
[1759765942422,17.84059595,236.08,236.03,0.69]
[1759765942621,17.84059595,236.08,236.02,31.08]
[1759765943015,17.84059595,236.08,236.03,31.02]
[1759765943225,17.84059595,236.08,236.03,31.71]
[1759765943614,17.84059595,236.08,236.03,31.02]
[1759765943927,17.84059595,236.08,236.03,31.71]
[1759765944431,3.01511307,236.07,236.03,31.71]
[1759765945038,3.01511307,236.07,236.03,0.69]
[1759765945335,4.23621113,236.06,236.04,31.0]
[1759765946708,14.82673896,236.06,236.02,0.69]
[1759765946912,17.84185203,236.06,236.03,30.96]
[1759765947112,14.82673896,236.06,236.03,31.65]
[1759765947721,14.82485492,236.09,236.03,31.65]
[1759765948028,3.01511307,236.08,236.03,31.65]
[1759765948335,14.82485492,236.09,236.04,0.69]
[1759765948634,14.82485492,236.09,236.05,0.69]
[1759765949007,17.83996799,236.09,236.05,0.69]
[1759765949626,3.01511307,236.08,236.03,0.69]
[1759765949818,14.82611089,236.07,236.04,31.61]
[1759765950025,14.82611089,236.07,236.05,30.92]
[1759765950413,14.82611089,236.07,236.06,30.9]
[1759765951222,14.82611089,236.07,236.03,0.69]
[1759765951415,3.01511307,236.05,236.0,0.69]
[1759765951617,3.01511307,236.04,236.03,30.9]
[1759765951939,4.23657007,236.04,236.03,30.9]
[1759765952736,4.23657007,236.04,236.03,31.59]
[1759765954230,14.82673896,236.06,236.03,31.59]
[1759765955333,14.82673896,236.06,236.04,30.86]
[1759765955533,14.82673896,236.06,236.03,0.69]
[1759765955835,14.82673896,236.06,236.04,30.84]
[1759765956035,3.01511307,236.07,236.04,30.84]
[1759765956234,3.01511307,236.07,236.05,30.84]
[1759765956417,3.01511307,236.1,236.06,0.72]
[1759765956623,36.0001694,236.11,236.07,0.72]
[1759765956624,14.82359916,236.11,236.07,0.72]
[1759765956935,14.82359916,236.11,236.05,30.84]
[1759765956936,14.82359916,236.11,236.08,0.72]
[1759765957136,14.82359916,236.11,236.06,0.72]
[1759765957314,17.83871223,236.11,236.07,0.72]
[1759765957517,17.83871223,236.11,236.08,0.72]
[1759765957807,14.82359916,236.11,236.08,0.72]
[1759765958037,14.82359916,236.11,236.06,0.72]
[1759765958240,14.82359916,236.11,236.07,0.72]
[1759765959217,14.82359916,236.11,236.05,30.84]
[1759765959442,14.82359916,236.11,236.06,0.72]
[1759765959739,14.82359916,236.11,236.07,0.72]
[1759765959938,14.82359916,236.11,236.08,0.72]
[1759765960238,14.82359916,236.11,236.05,30.84]
[1759765960239,14.82359916,236.11,236.06,0.72]
[1759765960540,4.23531404,236.11,236.07,0.72]
[1759765961929,10.5871109,236.14,236.07,0.72]
[1759765967728,4.23459665,236.15,236.07,0.72]
[1759765968133,14.82108828,236.15,236.07,0.72]
[1759765968541,10.58649163,236.15,236.07,0.72]
[1759765968739,10.58649163,236.15,236.08,20.8]
[1759765968940,4.23441734,236.16,236.09,0.66]
[1759765969143,14.8204607,236.16,236.06,0.66]
[1759765969341,13.89158828,236.15,236.1,30.72]
[1759765969560,17.83557377,236.16,236.1,30.72]
[1759765969839,17.83557377,236.16,236.1,31.38]
[1759765970746,17.83557377,236.16,236.1,30.72]
[1759765970930,14.8204607,236.16,236.1,30.72]
[1759765971124,17.83557377,236.16,236.1,30.72]
[1759765972450,3.01511307,236.15,236.1,30.72]
[1759765972642,3.01511307,236.14,236.1,30.72]
[1759765973029,3.01511307,236.14,236.1,31.38]
[1759765973241,3.01511307,236.15,236.1,31.38]
[1759765973724,17.83557377,236.16,236.11,0.66]
[1759765973954,14.8204607,236.16,236.11,0.66]
[1759765974652,10.58604336,236.16,236.11,0.66]
[1759765975150,4.23405876,236.18,236.11,0.66]
[1759765976349,10.58514692,236.18,236.11,0.66]
[1759765976854,10.58514692,236.18,236.12,30.66]
[1759765977027,10.58514692,236.18,236.12,31.32]
[1759765977230,10.58514692,236.18,236.12,0.66]
[1759765977445,12.51181844,236.18,236.13,30.64]
[1759765978149,12.51181844,236.18,236.13,31.3]
[1759765978346,14.81920568,236.18,236.14,0.66]
[1759765978854,14.81920568,236.18,236.15,0.66]
[1759765979425,14.81920568,236.18,236.07,20.8]
[1759765979636,14.81920568,236.18,236.04,15.11287475]
[1759765979637,14.81920568,236.18,236.12,0.66]
[1759765980453,4.2338795,236.19,236.12,0.66]
[1759765981240,1.92667152,236.18,236.13,30.6]
[1759765981453,16.74524977,236.19,236.13,31.26]
[1759765981963,14.81857825,236.19,236.14,0.66]
[1759765982264,21.16563655,236.24,236.15,0.66]
[1759765982446,1.92667152,236.22,236.15,0.66]
[1759765983137,1.92667152,236.21,236.15,0.66]
[1759765983956,1.92667152,236.22,236.15,0.66]
[1759765984329,21.16563655,236.24,236.15,0.66]
[1759765984330,14.81732355,236.21,236.15,0.66]
[1759765984956,4.23352101,236.21,236.15,0.66]
[1759765985660,16.74399507,236.21,236.15,0.66]
[1759765985959,14.81732355,236.21,236.16,30.58]
[1759765986154,14.81732355,236.21,236.17,0.66]
[1759765986346,10.58380254,236.21,236.18,0.66]
[1759765986543,10.58380254,236.21,236.16,31.24]
[1759765986744,10.58380254,236.21,236.17,31.24]
[1759765986963,10.58380254,236.21,236.17,30.58]
[1759765987876,10.58380254,236.21,236.18,0.66]
[1759765988647,10.58380254,236.21,236.19,30.56]
[1759765988847,10.58380254,236.21,236.2,30.56]
[1759765989253,10.58380254,236.21,236.17,0.66]
[1759765989440,10.58380254,236.21,236.18,31.22]
[1759765989638,10.58380254,236.21,236.19,30.54]
[1759765990839,10.58380254,236.21,236.19,31.2]
[1759765991462,10.58380254,236.21,236.19,30.54]
[1759765993171,14.81732355,236.21,236.19,30.54]
[1759765993349,14.81732355,236.21,236.19,31.2]
[1759765993759,4.23329371,236.23,236.2,0.66]
[1759765993978,1.92667152,236.29,236.2,0.66]
[1759765994268,1.92667152,236.3,236.2,0.66]
[1759765995066,16.73897842,236.29,236.2,0.66]
[1759765996267,1.92667152,236.27,236.2,0.66]
[1759765996446,1.92667152,236.26,236.21,30.48]
[1759765996950,1.92667152,236.26,236.22,0.66]
[1759765997151,1.92667152,236.26,236.21,30.48]
[1759765997673,1.92667152,236.26,236.22,0.66]
[1759765997971,1.92667152,236.27,236.22,0.66]
[1759765998182,1.92667152,236.27,236.23,0.72]
[1759765998472,14.81418775,236.26,236.23,0.72]
[1759765998843,14.81418775,236.26,236.21,31.2]
[1759765999042,16.74085927,236.26,236.22,30.46]
[1759765999243,14.81418775,236.26,236.23,0.72]
[1759765999447,14.81418775,236.26,236.24,0.72]
[1759765999869,14.81418775,236.26,236.22,31.18]
[1759766000170,14.81418775,236.26,236.23,0.72]
[1759766000559,14.81418775,236.26,236.24,0.72]
[1759766000970,21.16043844,236.29,236.24,0.72]
[1759766001170,1.92667152,236.28,236.22,30.46]
[1759766001363,1.92667152,236.27,236.22,30.46]
[1759766001564,1.92667152,236.27,236.22,31.18]
[1759766002875,14.81418775,236.26,236.23,0.72]
[1759766003864,14.81418775,236.26,236.19,0.72]
[1759766004168,16.24085927,236.26,236.2,30.42]
[1759766004364,14.31418775,236.26,236.21,0.72]
[1759766004563,1.92667152,236.25,236.14,20.8]
[1759766004772,1.92667152,236.25,236.19,0.72]
[1759766004971,16.74211343,236.24,236.19,0.72]
[1759766005378,16.74211343,236.24,236.15,30.42]
[1759766005379,1.92667152,236.23,236.15,30.42]
[1759766005574,16.74211343,236.24,236.19,0.72]
[1759766005879,14.81544191,236.24,236.2,0.72]
[1759766006088,14.81544191,236.24,236.21,30.4]
[1759766006579,14.81544191,236.24,236.21,31.12]
[1759766006965,1.92667152,236.24,236.21,30.4]
[1759766007980,1.92667152,236.23,236.21,30.4]
[1759766009486,4.2333418,236.22,236.21,30.4]
[1759766009986,4.2333418,236.22,236.21,31.12]
[1759766010767,4.2333418,236.22,236.21,30.4]
[1759766011681,12.50921849,236.24,236.21,30.4]
[1759766011682,4.23316259,236.23,236.21,31.12]
[1759766011986,4.23316259,236.23,236.21,30.4]
[1759766012782,6.15983411,236.23,236.21,30.4]
[1759766012961,6.15983411,236.23,236.08,10.87647521]
[1759766012962,10.87647521,236.17,236.08,0.72]
[1759766013164,1.92667152,236.11,236.08,0.72]
[1759766013362,1.92667152,236.12,236.09,31.1]
[1759766013662,1.92667152,236.12,236.1,30.38]
[1759766013864,4.23531404,236.11,236.1,30.38]
[1759766014682,4.23531404,236.11,236.1,31.1]
[1759766015572,4.23531404,236.11,236.1,0.72]
[1759766015775,4.23531404,236.11,236.1,31.08]
[1759766017082,10.58615353,236.16,236.1,31.08]
[1759766017264,10.58615353,236.16,236.11,0.72]
[1759766017884,4.23423804,236.17,236.11,0.72]
[1759766018078,10.58494587,236.19,236.11,0.72]
[1759766018282,1.92667152,236.18,236.11,0.72]
[1759766018482,1.92667152,236.16,236.11,0.72]
[1759766018671,1.92667152,236.15,236.11,0.72]
[1759766019083,1.92667152,236.16,236.12,31.08]
[1759766019387,10.58494587,236.19,236.13,0.72]
[1759766019388,1.92667152,236.17,236.13,0.72]
[1759766020391,14.8204607,236.16,236.14,31.08]
[1759766020689,14.8204607,236.16,236.15,30.36]
[1759766021193,14.8204607,236.16,236.15,31.08]
[1759766022276,10.58604336,236.16,236.15,31.08]
[1759766024188,10.58604336,236.16,236.15,0.72]
[1759766024491,10.58604336,236.16,236.15,31.08]
[1759766024811,12.51271488,236.16,236.09,20.8]
[1759766024981,1.92667152,236.15,236.1,31.08]
[1759766025174,10.58604336,236.16,236.1,31.08]
[1759766025175,12.51271488,236.16,236.11,0.72]
[1759766025369,10.58604336,236.16,236.12,0.72]
[1759766025695,10.58604336,236.16,236.13,0.72]
[1759766026397,14.8204607,236.16,236.13,0.72]
[1759766026583,14.8204607,236.16,236.14,0.72]
[1759766026775,14.8204607,236.16,236.15,30.36]
[1759766028299,14.8204607,236.16,236.15,31.05]
[1759766028589,10.58604336,236.16,236.15,31.05]
[1759766029785,10.58604336,236.16,236.15,0.69]
[1759766029982,10.58604336,236.16,236.15,31.05]
[1759766031289,10.58604336,236.16,236.15,0.69]
[1759766031492,10.58604336,236.16,236.15,31.05]
[1759766032204,10.58604336,236.16,236.15,30.36]
[1759766032405,12.51271488,236.16,236.13,0.69]
[1759766032578,12.51271488,236.16,236.07,20.8]
[1759766032900,12.51271488,236.16,236.08,31.05]
[1759766033079,10.58604336,236.16,236.09,0.69]
[1759766033280,10.58604336,236.16,236.1,30.36]
[1759766033582,14.8204607,236.16,236.11,0.69]
[1759766035200,14.8204607,236.16,236.12,30.36]
[1759766035505,10.58604336,236.16,236.13,31.05]
[1759766035680,10.58604336,236.16,236.14,0.69]
[1759766037499,10.58604336,236.16,236.15,30.36]
[1759766038801,21.16795887,236.21,236.15,30.36]
[1759766038802,21.16335505,236.26,236.15,31.05]
[1759766038994,1.92667152,236.25,236.16,0.69]
[1759766039195,13.59085631,236.25,236.16,0.69]
[1759766039508,3.00884573,236.23,236.16,0.69]
[1759766039693,3.00884573,236.17,236.11,21.49]
[1759766039896,3.00884573,236.17,236.15,30.34]
[1759766040281,3.00884573,236.18,236.15,30.34]
[1759766040902,4.23423804,236.17,236.15,30.34]
[1759766041105,7.24308377,236.17,236.15,30.34]
[1759766043702,17.82867889,236.17,236.05,4.64738008]
[1759766043901,3.00884573,236.12,236.09,0.69]
[1759766044910,4.23531404,236.11,236.09,0.69]
[1759766046496,14.82359916,236.11,236.1,30.34]
[1759766046900,4.23405876,236.18,236.1,31.03]
[1759766047211,10.58567393,236.17,236.11,0.69]
[1759766048184,4.23405876,236.18,236.11,0.69]
[1759766048893,14.8181016,236.2,236.11,0.69]
[1759766050203,17.82694733,236.2,236.11,0.69]
[1759766050797,14.8181016,236.2,236.11,0.69]
[1759766051194,14.8181016,236.2,236.12,30.34]
[1759766051394,4.23370025,236.2,236.13,0.69]
[1759766051818,14.81795088,236.2,236.13,0.69]
[1759766052416,10.58425063,236.2,236.13,0.69]
[1759766057121,3.00884573,236.23,236.13,0.69]
[1759766057498,14.81544191,236.24,236.15,20.8]
[1759766057707,14.81544191,236.24,236.16,0.69]
[1759766057905,14.81544191,236.24,236.17,30.34]
[1759766058099,14.81544191,236.24,236.18,0.68]
[1759766058810,10.58245851,236.24,236.18,0.68]
[1759766059801,10.58245851,236.24,236.17,30.34]
[1759766060008,3.00884573,236.23,236.17,30.34]
[1759766060809,14.8166963,236.22,236.17,30.34]
[1759766060997,14.8166963,236.22,236.17,31.02]
[1759766061739,17.82554203,236.22,236.18,30.34]
[1759766062410,14.8166963,236.22,236.18,30.34]
[1759766062819,10.5833545,236.22,236.18,31.02]
[1759766063929,10.5833545,236.22,236.18,30.34]
[1759766064244,10.5833545,236.22,236.19,0.68]
[1759766064641,10.5833545,236.22,236.18,30.34]
[1759766064828,10.5833545,236.22,236.18,31.02]
[1759766065431,10.5833545,236.22,236.18,30.34]
[1759766065618,10.5833545,236.22,236.18,31.02]
[1759766067739,10.5833545,236.22,236.19,0.68]
[1759766068235,10.5833545,236.22,236.18,30.34]
[1759766068437,10.5833545,236.22,236.18,0.68]
[1759766068623,10.5833545,236.22,236.19,30.32]
[1759766068826,10.5833545,236.22,236.19,31.0]
[1759766069034,4.23316259,236.23,236.2,0.68]
[1759766069238,4.23316259,236.23,236.21,0.68]
[1759766070230,14.81544191,236.24,236.19,31.0]
[1759766070537,14.81544191,236.24,236.2,0.68]
[1759766070717,14.81544191,236.24,236.21,0.68]
[1759766071228,14.81544191,236.24,236.19,30.32]
[1759766071446,14.81544191,236.24,236.2,0.68]
[1759766071819,14.81544191,236.24,236.19,30.32]
[1759766071820,14.81544191,236.24,236.21,0.68]
[1759766072835,4.2329834,236.24,236.21,0.68]
[1759766073435,14.81544191,236.24,236.21,0.68]
[1759766075341,14.81544191,236.24,236.19,30.32]
[1759766075342,17.82428764,236.24,236.19,30.32]
[1759766075651,17.82428764,236.24,236.19,31.01]
[1759766076154,17.82428764,236.24,236.2,30.32]
[1759766076517,17.82428764,236.24,236.2,31.01]
[1759766076927,21.16260057,236.27,236.2,31.01]
[1759766077226,3.00884573,236.24,236.2,31.01]
[1759766078044,21.16260057,236.27,236.2,31.01]
[1759766078244,14.81606907,236.23,236.2,31.01]
[1759766078630,14.81606907,236.23,236.21,0.69]
[1759766079338,10.58290648,236.23,236.21,0.69]
[1759766080133,10.58290648,236.23,236.22,0.69]
[1759766081033,10.58290648,236.23,236.2,30.32]
[1759766081236,10.58290648,236.23,236.21,0.69]
[1759766084053,10.58290648,236.23,236.22,0.69]
[1759766084253,10.58290648,236.23,236.2,30.32]
[1759766084448,10.58290648,236.23,236.21,0.69]
[1759766086432,14.81606907,236.23,236.21,0.69]
[1759766087063,14.81606907,236.23,236.2,30.32]
[1759766087353,17.8249148,236.23,236.2,30.32]
[1759766087932,17.8249148,236.23,236.2,31.04]
[1759766088863,3.00884573,236.21,236.16,0.72]
[1759766089048,14.81606907,236.23,236.18,30.3]
[1759766089049,3.00884573,236.2,236.18,30.3]
[1759766089447,3.00884573,236.21,236.18,31.02]
[1759766089635,3.00884573,236.22,236.18,31.02]
[1759766089834,3.00884573,236.22,236.18,30.3]
[1759766090144,3.00884573,236.22,236.18,31.02]
[1759766090536,14.81732355,236.21,236.18,30.3]
[1759766090944,3.00884573,236.19,236.16,30.3]
[1759766091150,3.00884573,236.18,236.16,30.3]
[1759766092063,20.8,236.18,236.09,0.72]
[1759766092363,10.87647521,236.16,236.09,0.72]
[1759766092544,3.00884573,236.11,236.09,0.72]
[1759766092737,3.00884573,236.11,236.07,28.92]
[1759766092937,3.00884573,236.11,236.08,0.72]
[1759766093262,3.00884573,236.1,236.08,0.72]
[1759766093434,3.00884573,236.11,236.08,0.72]
[1759766093631,4.23549343,236.1,236.08,0.72]
[1759766094045,4.23549343,236.1,236.07,28.2]
[1759766094246,4.23549343,236.1,236.08,0.72]
[1759766094833,4.23549343,236.1,236.07,28.2]
[1759766095038,4.23513467,236.12,236.09,0.72]
[1759766095448,4.23513467,236.12,236.1,0.72]
[1759766095651,14.82297136,236.12,236.1,0.72]
[1759766096455,14.82297136,236.12,236.11,0.72]
[1759766097066,10.58783669,236.12,236.07,28.2]
[1759766097256,10.58783669,236.12,236.11,0.72]
[1759766097457,10.58783669,236.12,236.11,31.02]